[Event "9th Floripa Open 2023"]
[Site "Florianopolis"]
[Date "2023.01.26"]
[Round "5.1"]
[White "Pichot, Alan"]
[Black "Di Berardino, Diego Rafael"]
[Result "1/2-1/2"]
[ECO "C90"]
[WhiteElo "2634"]
[BlackElo "2458"]
[Annotator "TA"]
[PlyCount "55"]
[EventDate "2023.01.23"]
[EventType "swiss"]
[EventCountry "BRA"]
[SourceTitle "playchess.com"]
[Source "ChessBase"]
[SourceQuality "1"]
[TimeControl "5400+30"]

{[%evp 23,55,13,12,12,17,16,68,63,63,73,73,57,56,58,67,64,56,66,72,66,72,62,66,14,20,0,0,0,48,0,0,-8,-6,-10]} 1. e4 {[%emt 0:00:55]} e5 {[%emt 0:00:05]} 2. Nf3 {[%emt 0:00:17]} Nc6 {[%emt 0:00:03]} 3. Bb5 {[%emt 0:00:10][%cal Bf1b5,Bb5a4,Ba4b3][%mdl 32]} a6 {[%emt 0:00:15]} 4. Ba4 {[%emt 0:00:10]} Nf6 {[%emt 0:00:06]} 5. O-O {[%emt 0:00:22]} Be7 {[%emt 0:00:44]} 6. Re1 {[%emt 0:00:22]} b5 {[%emt 0:00:15]} 7. Bb3 {[%emt 0:00:05]} O-O {[%emt 0:00:42]} 8. a4 {[%emt 0:02:32]} b4 {[%emt 0:03:33]} 9. d3 {[%emt 0:05:18]} d6 {[%emt 0:00:41]} 10. a5 {[%emt 0:00:19]} Be6 {[%emt 0:04:41]} 11. Bxe6 {[%emt 0:01:18]} fxe6 {[%emt 0:00:04]} 12. c3 {[%emt 0:02:34]} Rb8 {[%emt 0:05:40]} 13. Nbd2 {[%emt 0:02:36] C90: Closed Ruy Lopez with 7...d6: Early deviations.} bxc3 {[%emt 0:10:17]} 14. bxc3 {[%emt 0:00:18] [#]} Nd7 $146 {[%emt 0:04:15]} ({Black should play} 14... Rb5 $11) ({Predecessor:} 14... Rb5 15. d4 exd4 16. cxd4 Nxa5 17. Qc2 Qd7 18. Ra4 Rfb8 19. Ba3 Ne8 20. Qa2 Nb3 21. Rxa6 Nxd2 22. Nxd2 {1-0 Nakamura,H (2745)-Melkumyan,H (2650) FIDE Chess.com Grand Swiss 2019 (8)}) 15. Qa4 $14 {[%emt 0:18:20] White is slightly better.} Rb5 {[%emt 0:06:57]} 16. Qc4 {[%emt 0:00:20][%csl LRc6,LRe6]} Nc5 {[%emt 0:03:49] [#] Hoping for ...d5.} ({Less strong is} 16... Nxa5 17. Qxe6+ Kh8 18. d4 $16) 17. d4 {[%emt 0:00:43]} d5 {[%emt 0:01:24]} ({Weaker is} 17... Rxa5 18. Rxa5 Nxa5 19. Qa2 $16) 18. exd5 {[%emt 0:04:28]} exd5 {[%emt 0:01:23]} 19. Qe2 {[%emt 0:00:26]} exd4 {[%emt 0:08:20]} (19... Rxa5 $2 20. Nxe5 Nxe5 21. Rxa5 $18) 20. cxd4 {[%emt 0:11:26]} Ne4 {[%emt 0:02:24]} 21. Nxe4 {[%emt 0:00:26]} dxe4 {[%emt 0:00:03]} 22. Qxe4 {[%emt 0:00:11]} Qd5 {[%emt 0:01:14]} 23. Bf4 {[%emt 0:15:20]} (23. Bd2 $14) 23... Bb4 $11 {[%emt 0:05:43]} 24. Qxd5+ {[%emt 0:05:26]} Rxd5 {[%emt 0:39:52]} 25. Re4 {[%emt 0:00:10]} Nxd4 {[%emt 0:00:00]} 26. Bxc7 {[%emt 0:05:12]} (26. Nxd4 $14 Rfd8 27. Bxc7 Rxd4 28. Rxd4 Rxd4 29. g3) 26... Bc3 {[%emt 0:00:00]} 27. Rc1 {[%emt 0:02:46]} Nxf3+ {[%emt 0:00:00]} 28. gxf3 {[%emt 0:22:00] Weighted Error Value: White=0.13 (very precise) /Black=0.11 (very precise)} 1/2-1/2

[Event "9th Floripa Open 2023"]
[Site "Florianopolis"]
[Date "2023.01.26"]
[Round "5.2"]
[White "Rodrigues, Edgar"]
[Black "Mareco, Sandro"]
[Result "1/2-1/2"]
[ECO "C45"]
[WhiteElo "2299"]
[BlackElo "2625"]
[Annotator "TA"]
[PlyCount "114"]
[EventDate "2023.01.23"]
[EventType "swiss"]
[EventCountry "BRA"]
[SourceTitle "playchess.com"]
[Source "ChessBase"]
[SourceQuality "1"]
[TimeControl "5400+30"]

{[%evp 12,114,20,0,-9,-10,-4,-12,-7,-8,-6,-8,8,-18,-6,-31,-33,-54,-58,-110,-120,-128,-107,-148,-168,-161,-170,-161,-164,-200,-150,-154,-154,-150,-123,-127,-136,-133,-110,-166,-173,-232,-220,-214,-220,-1881,-110,-118,-108,-126,-121,-95,-71,-72,-39,-183,-100,-92,-96,-93,-68,-93,-61,-47,-58,-70,-40,-72,-16,-39,-42,-100,-100,-325,-173,-144,-82,-83,-21,-21,-25,-20,-20,-23,-28,-116,-69,-69,-69,-69,-69,-69,-69,-69,-2,-2,-1,-25,0,0,0,0,0,0,0]} 1. e4 {[%emt 0:00:02]} e5 {[%emt 0:00:29]} 2. Nf3 {[%emt 0:00:08]} Nc6 {[%emt 0:00:04][%cal Bb8c6,Bc6e5,Be5c4][%mdl 32]} 3. d4 {[%emt 0:00:10]} exd4 {[%emt 0:00:04]} 4. Nxd4 {[%emt 0:00:05]} Bc5 {[%emt 0:00:05]} 5. Be3 {[%emt 0:00:08]} Qf6 {[%emt 0:00:05]} 6. c3 {[%emt 0:00:06]} d6 {[%emt 0:00:03]} 7. Bc4 {[%emt 0:01:08] is the legacy move (7.Be2).} (7. Be2 {simplifies} Nge7 8. O-O O-O 9. Nxc6 Nxc6 10. Bxc5 dxc5 11. f4) 7... Ne5 {[%emt 0:00:12] C45: Scotch Game.} 8. O-O {[%emt 0:02:00]} Qg6 {[%emt 0:03:48]} 9. f3 {[%emt 0:01:34]} Nxc4 {[%emt 0:00:15]} 10. Qa4+ {[%emt 0:00:07]} c6 {[%emt 0:00:06]} 11. Qxc4 {[%emt 0:00:11] [#]} Nf6 $146 {[%emt 0:00:07]} ({Predecessor:} 11... Be6 12. Qe2 Ne7 13. Nd2 O-O 14. N2b3 Bb6 15. Nxe6 {½-½ Staufcik,R-Butula,M Morava-chT 9697 1996}) 12. Nd2 {[%emt 0:01:48]} O-O {[%emt 0:05:13]} 13. Kh1 {[%emt 0:04:04]} (13. Nc2 $5 {[%cal Re3c5]}) 13... Bb6 {[%emt 0:03:18]} 14. Qa4 {[%emt 0:20:07][%cal Od4c6]} Re8 {[%emt 0:12:27]} 15. c4 {[%emt 0:00:54]} (15. Rae1 $15) 15... d5 $1 $17 {[%emt 0:06:25]} 16. cxd5 {[%emt 0:03:50]} cxd5 {[%emt 0:00:27]} 17. Qb3 {[%emt 0:12:53]} dxe4 {[%emt 0:02:34]} 18. Nc4 {[%emt 0:02:40]} Bxd4 {[%emt 0:26:00]} 19. Bxd4 {[%emt 0:00:15]} Be6 {[%emt 0:00:05] Strongly threatening ...Rac8.} 20. Qb4 {[%emt 0:03:29]} Bd5 $40 {[%emt 0:04:25][%mdl 128] ...exf3 is the strong threat. Black wants a kill.} 21. Ne5 {[%emt 0:06:53]} Qh5 {[%emt 0:04:57]} 22. f4 {[%emt 0:02:22]} a5 {[%emt 0:02:32]} (22... e3 23. Bxe3 Rac8 24. Qd2 $17) 23. Qc3 {[%emt 0:00:46]} Qf5 {[%emt 0:02:52]} (23... e3 24. Qxe3 Rac8 25. Qd3 $15) 24. Qg3 {[%emt 0:01:08]} Rac8 {[%emt 0:03:04][%cal Oe4e3]} 25. Bc3 {[%emt 0:02:35]} (25. Qg5 $17 {keeps fighting.} Be6 26. Qxf5 Bxf5 27. b3) 25... a4 {[%emt 0:01:51]} 26. a3 {[%emt 0:00:23] [#]} (26. Kg1 {was called for.}) 26... e3 $1 $19 {[%emt 0:01:18][%mdl 512]} 27. Qxe3 {[%emt 0:04:58]} Ne4 $1 {[%emt 0:00:06] Threatens to win with ...Nxc3.} (27... Qc2 28. Rf2 Qb3 29. Rff1 $17) 28. Qd4 {[%emt 0:01:00]} (28. Rfd1 Nxc3 29. bxc3) 28... Nxc3 $2 {[%emt 0:00:27]} (28... Ng3+ $19 {is more deadly.} 29. Kg1 Ne2+ 30. Kh1 Nxd4) 29. bxc3 $17 {[%emt 0:00:19]} Bb3 {[%emt 0:00:14]} 30. Rae1 {[%emt 0:05:30]} f6 {[%emt 0:02:02]} 31. Nf3 {[%emt 0:00:33]} Red8 {[%emt 0:01:21]} 32. Qb4 {[%emt 0:03:29]} Qc5 {[%emt 0:03:43]} 33. Qxb7 {[%emt 0:04:24] [#]} (33. Qxc5 $1 $15 Rxc5 34. Re3) 33... Rc7 {[%emt 0:00:12]} ({Weaker is} 33... Qxa3 34. Re7 Bd5 35. Qa7 $15 (35. Rxg7+ $2 Kf8 $19)) (33... Bc4 $1 $19 {[%cal Rc4f1]} 34. Rg1 (34. Re7 $2 Rb8 $19) 34... Bd5) 34. Qb4 {[%emt 0:03:44]} Qxc3 {[%emt 0:00:10]} 35. Qb6 {[%emt 0:00:45]} Rdc8 {[%emt 0:04:58]} (35... Qc6 {simplifies} 36. Qxc6 Rxc6 37. Kg1 Rc3) 36. Nd4 {[%emt 0:03:41]} Qc5 {[%emt 0:04:16]} (36... Bd5 {keeps more tension.} 37. Qb5 Bf7 38. Nf5 Qxa3 39. Re3 Qf8) 37. Qxc5 {[%emt 0:00:24]} Rxc5 {[%emt 0:00:04]} 38. Kg1 {[%emt 0:00:38]} Bf7 {[%emt 0:00:49]} 39. Re7 {[%emt 0:01:45]} g6 {[%emt 0:04:26]} (39... Rd5 $17 40. Nf3 Rd3) 40. Ra7 {[%emt 0:01:24]} Rc4 {[%emt 0:00:28]} 41. Nb5 {[%emt 0:00:53]} (41. Rd7 $15) 41... Rd8 {[%emt 0:00:11] Hoping for ...Rc2.} 42. g3 $2 {[%emt 0:00:28]} (42. Rc7 $17) 42... Rc5 {[%emt 0:00:46]} (42... Rd2 $142 {( -> ...Rcc2)} 43. Ra8+ Kg7) 43. Nc7 {[%emt 0:02:19]} Rd2 {[%emt 0:01:13]} (43... Rc3 $142 44. g4 (44. Nb5 $2 Rb3 $19 {[%mdl 64] Deflection}) 44... Rd2) 44. Rf2 {[%emt 0:01:01] [#]} Rd7 {[%emt 0:00:28]} ({Better is} 44... Rd1+ $1 $17 45. Kg2 Rc6) 45. Ra8+ $11 {[%emt 0:01:00]} Kg7 {[%emt 0:00:05]} 46. Ne8+ {[%emt 0:00:40]} Bxe8 {[%emt 0:00:28]} 47. Rxe8 {[%emt 0:00:03][%mdl 4096] Endgame KRR-KRR} Rc1+ {[%emt 0:00:12]} 48. Rf1 {[%emt 0:01:01]} (48. Kg2 $11 {remains equal.}) 48... Rxf1+ {[%emt 0:00:29]} (48... Rc3 $17 49. Ra8 Rxa3) 49. Kxf1 $17 {[%emt 0:00:02] KR-KR} Rd3 {[%emt 0:00:13]} 50. Re7+ {[%emt 0:00:53]} Kg8 $1 {[%emt 0:01:03]} 51. Kg2 {[%emt 0:00:43]} Rxa3 {[%emt 0:00:22]} 52. Ra7 {[%emt 0:00:35]} h5 {[%emt 0:01:24]} (52... Ra2+ $15 53. Kf3 a3 54. Ra8+ Kf7 55. Ra7+ Ke6 56. Rxh7 Rb2) 53. Kh3 $11 {[%emt 0:00:32]} Ra2 {[%emt 0:00:48]} 54. g4 {[%emt 0:01:06]} a3 {[%emt 0:01:44] aiming for ...hxg4+.} 55. gxh5 {[%emt 0:00:38] The position is equal.} gxh5 {[%emt 0:00:07]} 56. Kg3 {[%emt 0:00:11]} Kf8 {[%emt 0:00:31]} 57. h3 {[%emt 0:00:01]} Ra1 {[%emt 0:01:42] Weighted Error Value: White=0.36/Black=0.27 (precise)} 1/2-1/2

[Event "9th Floripa Open 2023"]
[Site "Florianopolis"]
[Date "2023.01.26"]
[Round "5.3"]
[White "Fier, Alexandr"]
[Black "Languidey, Simon Alejandro"]
[Result "1-0"]
[ECO "C11"]
[WhiteElo "2602"]
[BlackElo "2403"]
[Annotator "TA"]
[PlyCount "79"]
[EventDate "2023.01.23"]
[EventType "swiss"]
[EventCountry "BRA"]
[SourceTitle "playchess.com"]
[Source "ChessBase"]
[SourceQuality "1"]
[TimeControl "5400+30"]

{[%evp 14,79,27,10,20,20,35,37,37,34,41,41,57,56,68,58,72,36,75,75,106,105,107,110,114,102,233,202,201,200,193,179,181,178,273,275,282,241,266,154,202,202,205,209,211,218,211,212,213,221,214,222,292,282,713,691,673,655,643,629,843,812,1053,1047,943,919,787,734]} 1. e4 {[%emt 0:00:03]} e6 {[%emt 0:03:22]} 2. d4 {[%emt 0:00:05]} d5 {[%emt 0:00:07]} 3. Nc3 {[%emt 0:00:02]} Nf6 {[%emt 0:01:32]} 4. e5 {[%emt 0:00:04]} Nfd7 {[%emt 0:00:09]} 5. f4 {[%emt 0:00:03]} c5 {[%emt 0:00:34]} 6. Nf3 {[%emt 0:00:04]} Nc6 {[%emt 0:00:24]} 7. Be3 {[%emt 0:00:05]} a6 {[%emt 0:01:02]} 8. a3 {[%emt 0:00:05]} b5 {[%emt 0:02:05] C11: French: Classical System: 4 e5 and 4 Bg5 dxe4.} 9. Bd3 {[%emt 0:00:10]} cxd4 {[%emt 0:16:21]} 10. Nxd4 {[%emt 0:00:16]} Nxd4 {[%emt 0:00:39] White is slightly better.} 11. Bxd4 {[%emt 0:00:06] [#]} Bc5 $146 {[%emt 0:01:02]} ({Predecessor:} 11... Bb7 12. Qf3 Bc5 13. Ne2 Bxd4 14. Nxd4 g6 15. h4 Qb6 16. c3 h5 17. g4 hxg4 18. Qxg4 {½-½ Basangwa,J (1614)-Mugisha,D (1999) Kampala Kireka op 4th 2019 (2)}) 12. Ne2 {[%emt 0:07:56]} O-O {[%emt 0:12:10]} 13. c3 {[%emt 0:06:01]} Qh4+ {[%emt 0:07:16]} 14. g3 {[%emt 0:00:20]} Qh3 {[%emt 0:00:18]} 15. Qc2 {[%emt 0:01:43]} Bxd4 {[%emt 0:01:26]} 16. cxd4 {[%emt 0:00:59]} Nb6 {[%emt 0:01:08]} 17. b3 {[%emt 0:10:17]} Bd7 {[%emt 0:01:34]} 18. Qc7 {[%emt 0:01:38]} Rab8 {[%emt 0:01:23] Black is weak on the dark squares} 19. Kf2 {[%emt 0:01:09] Dodges Qg2+. White is more active.} f5 {[%emt 0:08:12] A mistake that costs the game.} (19... Rfd8 $16) 20. Rac1 {[%emt 0:00:59]} Qh5 {[%emt 0:11:16]} 21. Qa7 {[%emt 0:00:36]} Qe8 {[%emt 0:00:47]} 22. Qxa6 {[%emt 0:02:09]} Qd8 {[%emt 0:02:01]} 23. Qa5 {[%emt 0:00:09]} ({Not} 23. Bxb5 Ra8 24. Qb7 Rb8 $11) 23... Rf7 {[%emt 0:02:10]} (23... Na8 $142 24. Qb4 Nc7) 24. Rc5 $18 {[%emt 0:00:35]} ({Less strong is} 24. Bxb5 Bxb5 25. Qxb5 Nc4 $16) 24... Be8 {[%emt 0:01:46]} 25. Rhc1 {[%emt 0:01:19]} Rfb7 {[%emt 0:04:53]} 26. Qc3 {[%emt 0:03:48]} ({White should try} 26. Bxb5 $18 Ra8 27. Qb4) 26... Na8 {[%emt 0:03:48]} (26... Ra7 $16 27. Ra1 (27. Bxb5 Rxa3 28. Rc2 Ra7 $16) 27... Nd7) 27. Rc8 {[%emt 0:01:08]} Rxc8 {[%emt 0:00:20]} 28. Qxc8 {[%emt 0:00:03]} Qxc8 {[%emt 0:00:42]} 29. Rxc8 {[%emt 0:00:05]} Nc7 {[%emt 0:00:13] [#]} 30. g4 $1 {[%emt 0:08:02][%mdl 512]} g6 {[%emt 0:05:44] [#]} 31. gxf5 {[%emt 0:00:04]} gxf5 {[%emt 0:00:11] [#]} 32. Ng3 $1 {[%emt 0:01:09]} Kg7 {[%emt 0:03:16] [#]} 33. Bxf5 $1 {[%emt 0:04:22][%mdl 512]} exf5 {[%emt 0:00:21]} (33... Kf7 34. Bxh7 Ke7) (33... Kf8 34. Bxh7) 34. Nxf5+ {[%emt 0:00:03] White is clearly winning.} Kg6 {[%emt 0:09:18]} 35. Nd6 {[%emt 0:00:04][%csl LRb7,LRe8]} Ra7 {[%emt 0:00:00]} 36. Nxe8 {[%emt 0:01:43]} Nxe8 {[%emt 0:00:00]} 37. Rxe8 {[%emt 0:00:04]} Rxa3 {[%emt 0:00:00]} 38. Rf8 {[%emt 0:01:36]} Kg7 {[%emt 0:00:45]} 39. Rb8 {[%emt 0:00:23]} Kg6 {[%emt 0:00:34]} 40. Rxb5 {[%emt 0:00:12] Weighted Error Value: White=0.11 (very precise) /Black=0.25 (precise)} 1-0

[Event "9th Floripa Open 2023"]
[Site "Florianopolis"]
[Date "2023.01.26"]
[Round "5.4"]
[White "Caetano, Ryan Wesley Da Costa"]
[Black "Delgado Ramirez, Neuris"]
[Result "0-1"]
[ECO "E36"]
[WhiteElo "2240"]
[BlackElo "2562"]
[Annotator "TA"]
[PlyCount "134"]
[EventDate "2023.01.23"]
[EventType "swiss"]
[EventCountry "BRA"]
[SourceTitle "playchess.com"]
[Source "ChessBase"]
[SourceQuality "1"]
[TimeControl "5400+30"]

{[%evp 15,134,17,0,2,24,-4,0,0,0,0,0,0,0,0,0,0,0,0,7,0,0,0,0,0,0,0,0,0,0,0,0,0,0,0,0,0,0,0,0,0,0,0,0,-4,-6,-51,-40,-48,-22,-14,-14,-59,-38,-93,-99,-133,-104,-114,-100,-98,-98,-137,-128,-133,-128,-126,-23,-36,-31,-38,-35,-37,-23,-56,-23,-122,-122,-135,-63,-63,-63,-86,-88,-99,-71,-71,-72,-91,-87,-79,-72,-181,-116,-132,-99,-195,-58,-276,-275,-235,-122,-450,-375,-340,0,-315,0,-811,-735,-1105,-1101,-1097,-1099,-686,-1033,-1033,-1024,-853,-639,-495,-183]} 1. d4 {[%emt 0:09:45]} Nf6 {[%emt 0:00:53]} 2. c4 {[%emt 0:00:06]} e6 {[%emt 0:00:04]} 3. Nc3 {[%emt 0:00:15]} Bb4 {[%emt 0:00:06]} 4. Qc2 {[%emt 0:00:07]} d5 {[%emt 0:00:29]} 5. a3 {[%emt 0:01:10]} Bxc3+ {[%emt 0:00:09]} 6. Qxc3 {[%emt 0:00:04]} O-O {[%emt 0:00:17]} 7. Nf3 {[%emt 0:00:13]} dxc4 {[%emt 0:05:34]} 8. Qxc4 {[%emt 0:00:07]} b6 {[%emt 0:00:06]} 9. Bg5 {[%emt 0:04:57] Black is weak on the dark squares. E36: Nimzo-Indian: Classical: 4...d5 5 a3.} Ba6 {[%emt 0:01:25]} 10. Qc2 {[%emt 0:03:40] [#]} c5 $1 {[%emt 0:02:13]} 11. Rd1 {[%emt 0:03:01] The position is equal.} (11. dxc5 bxc5) 11... cxd4 {[%emt 0:05:53]} 12. Rxd4 {[%emt 0:09:54]} Qc8 {[%emt 0:01:23]} 13. Qxc8 {[%emt 0:08:19]} Rxc8 {[%emt 0:00:03]} 14. Bxf6 {[%emt 0:00:24]} gxf6 {[%emt 0:00:03]} 15. e3 {[%emt 0:02:38] [#]} Bb7 $146 {[%emt 0:02:04]} ({Predecessor:} 15... Bxf1 16. Rxf1 Nc6 17. Rg4+ Kf8 18. Rh4 Kg7 19. Rg4+ Kf8 20. Rh4 Kg7 21. Rg4+ Kf8 22. Rh4 Kg7 23. Rg4+ Kf8 24. Ng1 {½-½ Istratescu,A (2651)-Naiditsch,A (2706) Nancy Meurthe op 11th rapid 2013 (9)}) 16. Be2 {[%emt 0:07:24]} Bd5 {[%emt 0:00:20]} 17. O-O {[%emt 0:02:54]} Nc6 {[%emt 0:01:35] Hoping for ...Bxf3.} 18. Rg4+ {[%emt 0:02:33]} Kh8 {[%emt 0:01:32][%cal Bg8h8,Bh8g7,Bg7f8][%mdl 32]} 19. e4 {[%emt 0:01:13]} Bb3 {[%emt 0:06:27]} 20. Rf4 {[%emt 0:12:49]} Kg7 {[%emt 0:01:37]} 21. Rg4+ {[%emt 0:00:20]} Kf8 {[%emt 0:00:25]} 22. Rh4 {[%emt 0:00:15]} Kg7 {[%emt 0:16:37]} 23. Rg4+ {[%emt 0:01:14]} Kh8 {[%emt 0:04:10]} 24. Rf4 {[%emt 0:00:46]} Ne7 {[%emt 0:00:38]} 25. Rxf6 {[%emt 0:08:38]} Kg7 {[%emt 0:01:37]} 26. Rf4 {[%emt 0:00:09]} Rc2 {[%emt 0:04:31]} (26... Ng6 $5 27. Rg4 $8 Rc2 $11) 27. Rg4+ {[%emt 0:06:20]} Ng6 {[%emt 0:00:30]} 28. Nd4 {[%emt 0:01:35][%cal Od4c2]} Rd2 {[%emt 0:01:54]} 29. Nxb3 {[%emt 0:02:15]} Rxe2 {[%emt 0:00:11]} 30. Nc1 {[%emt 0:02:29]} (30. Nd4 $5 {[%cal Rd4e2]} Rd2 31. e5 $11) 30... Rxb2 {[%emt 0:01:16]} 31. f4 {[%emt 0:01:38]} f5 $36 {[%emt 0:05:27][%mdl 2048] Black has good play.} (31... h5 $5 {[%cal Rh5g4]} 32. Rg3 h4 $15) 32. exf5 {[%emt 0:00:05]} exf5 {[%emt 0:00:23]} 33. Rg5 {[%emt 0:02:37]} Kf6 {[%emt 0:02:29]} 34. Rh5 {[%emt 0:01:16]} ({White should try} 34. Rg3 $15) 34... Rd8 $17 {[%emt 0:03:54]} 35. Rxh7 {[%emt 0:01:16]} Rdd2 {[%emt 0:00:02]} 36. g3 {[%emt 0:00:24]} Nf8 {[%emt 0:00:08][%mdl 1024] Black has strong compensation.} (36... Ne7 {looks sharper.} 37. Re1 Nd5 38. Rd7 Rg2+) 37. Rh6+ {[%emt 0:01:48]} Kg7 {[%emt 0:00:31]} 38. Rh3 {[%emt 0:00:37]} Nd7 {[%emt 0:00:29] And now ...Nf6 would win. Black has more active pieces.} 39. g4 {[%emt 0:01:01] [#]} Rg2+ $1 {[%emt 0:05:07]} (39... fxg4 40. Rg3 $15) 40. Kh1 {[%emt 0:00:05]} Rxg4 {[%emt 0:00:52]} (40... fxg4 $17 41. Rh4 Nc5) 41. Nd3 {[%emt 0:01:59]} Rb3 {[%emt 0:01:08]} 42. Nf2 {[%emt 0:00:07][%csl LRb3,LRg4]} Rxh3 {[%emt 0:00:45]} 43. Nxh3 $15 {[%emt 0:00:04][%mdl 4096] Endgame KRN-KRN} Nc5 {[%emt 0:01:10]} 44. Rg1 {[%emt 0:00:53]} Kf6 {[%emt 0:00:26]} (44... Rg6 $5 {[%cal Rc5d3]}) 45. Rg3 {[%emt 0:01:16]} (45. Rd1 $11) 45... Ne6 $17 {[%emt 0:03:42]} 46. Rf3 {[%emt 0:00:41]} b5 {[%emt 0:00:05]} (46... Ke7 $17 47. Re3 Kd6 48. Rd3+ Kc6) 47. Rb3 $1 $15 {[%emt 0:00:58]} a6 {[%emt 0:00:09]} 48. Rb4 {[%emt 0:00:19]} Ke7 {[%emt 0:01:40]} 49. a4 {[%emt 0:00:22]} Kd6 {[%emt 0:00:09]} 50. axb5 {[%emt 0:00:26]} Kc5 $1 {[%emt 0:00:03][%csl LRb4,LRb5]} 51. Rb1 {[%emt 0:00:23]} axb5 {[%emt 0:00:16]} (51... Nxf4 $2 52. Nxf4 axb5 53. Nd3+ Kb6 54. Rb4 $18) 52. Nf2 {[%emt 0:00:18]} Rg7 {[%emt 0:00:34]} (52... Rxf4 53. Nd3+ Kc4 54. Nxf4 Nxf4 55. Rf1 $11) 53. Re1 {[%emt 0:00:29]} (53. Nd3+ $17 Kb6 54. Rg1) 53... Nd4 {[%emt 0:00:31]} (53... Nxf4 $19 {Threatens to win with ...b4.} 54. h4 Nd5) 54. Nd3+ $17 {[%emt 0:00:22]} Kc4 {[%emt 0:00:28]} 55. Ne5+ {[%emt 0:00:12]} (55. Re3 $17) 55... Kd5 {[%emt 0:00:08]} (55... Kb3 $19 {Strongly threatening ...Kc2.} 56. Rd1 Ne2) 56. h3 $2 {[%emt 0:01:40]} ({Better is} 56. Rd1 $15 Ke4 57. Re1+ Kd5 58. Rd1) 56... b4 $19 {[%emt 0:00:35] ...b3 would be deadly.} 57. Kh2 {[%emt 0:00:29] [#]} b3 {[%emt 0:00:16]} (57... Rc7 $1 $19 {[%cal Rc7c2]} 58. Kg3 Rc3+ 59. Kh4 b3) 58. Rb1 $2 {[%emt 0:00:12][%mdl 8192]} (58. h4 $17) 58... Rb7 {[%emt 0:02:55]} ({Wrong is} 58... Ke4 $2 59. Re1+ Kd5 60. Rd1 $19) 59. h4 {[%emt 0:00:30]} Ke4 $2 {[%emt 0:00:22]} (59... Ne2 $19 60. Rd1+ Kc5) 60. Kh3 $2 {[%emt 0:01:06][%mdl 8192]} (60. Re1+ $1 $11 {and White has nothing to worry.} Kd5 61. h5) 60... Kxf4 $2 {[%emt 0:02:03]} (60... Nf3 $19 61. Nc4 Kxf4) 61. Ng6+ $2 {[%emt 0:00:11][%mdl 8192]} (61. Re1 $11) 61... Ke3 {[%emt 0:00:24] Black is clearly winning.} 62. h5 {[%emt 0:00:07]} Rh7 {[%emt 0:00:37]} 63. Kh4 {[%emt 0:00:22]} Nf3+ {[%emt 0:00:22]} 64. Kg3 {[%emt 0:00:06]} Nd2 {[%emt 0:00:05]} ({Not} 64... Rxh5 65. Rxb3+ Ke4 66. Kf2 $11 (66. Rxf3 Rg5+ 67. Kf2 Rxg6 $11)) 65. Re1+ {[%emt 0:00:08]} Kd4 {[%emt 0:00:15]} 66. Rd1 {[%emt 0:02:15]} Kc3 {[%emt 0:00:18]} 67. Rc1+ {[%emt 0:00:09]} Kb4 $2 {[%emt 0:21:10] Weighted Error Value: White=0.39/Black=0.33} (67... Kb2 68. Rc8 Rxh5) 0-1